fUSD/lending_fUSD_20240327
["ID","MTS","AMOUNT","RATE_DAILY","PERIOD"]
[320748468,1711545041463,-155.0,0.0002,2]
[320748469,1711545041472,-155.0,0.0002,2]
[320748470,1711545041482,-151.57,0.00020161,2]
[320748471,1711545041491,-156.94,0.00020215,2]
[320748472,1711545041501,-180.0,0.00020354,2]
[320748473,1711545041510,-151.57,0.00020369,2]
[320748474,1711545041519,-779.14,0.00020417,2]
[320748475,1711545041528,-3903.97,0.00020437,2]
[320748476,1711545041538,-167.03,0.00020506,2]
[320748477,1711545041547,-151.57,0.00020577,2]
[320748478,1711545041556,-23900.0,0.00020735,2]
[320748479,1711545041564,-151.57,0.00020785,2]
[320748480,1711545041574,-186.93,0.00020978,2]
[320748481,1711545041583,-159.65,0.00020978,2]
[320748482,1711545041592,-151.57,0.00020993,2]
[320748483,1711545041601,-159.65,0.00020999,2]
[320748484,1711545041611,-467.17667592,0.00021,2]
[320748485,1711545041621,-159.65,0.0002102,2]
[320748486,1711545041629,-159.65,0.00021041,2]
[320748487,1711545041638,-159.65,0.00021062,2]
[320748488,1711545041647,-159.65,0.00021083,2]
[320748489,1711545041656,-6176.39,0.00021096,2]
[320748490,1711545041666,-167.03,0.00021259,2]
[320748491,1711545041675,-171.1,0.00021309,2]
[320748492,1711545041684,-156.94,0.00021645,2]
[320748493,1711545041694,-1000.0,0.00021754,2]
[320748494,1711545041704,-190.55,0.000218,2]
[320748495,1711545041713,-400.0,0.00021844,2]
[320748496,1711545041723,-250.0,0.00021918,2]
[320748497,1711545041732,-11900.0,0.00021918,2]
[320748498,1711545041741,-150.0,0.00021918,2]
[320748499,1711545041751,-150.0,0.00021918,2]
[320748500,1711545041761,-300.29715877,0.0002199,2]
[320748501,1711545041770,-644.17906747,0.00022,2]
[320748502,1711545041780,-780.88336166,0.00022,2]
[320748503,1711545041789,-155.0,0.00022,2]
[320748504,1711545041799,-167.21,0.00022077,2]
[320748505,1711545041809,-152.08130486,0.00022232,2]
[320748506,1711545041818,-186.66881899,0.00022232,2]
[320748507,1711545041828,-166.8,0.00022514,2]
[320748508,1711545041838,-422.8,0.000226,2]
[320748509,1711545041848,-265.55,0.000226,2]
[320748510,1711545041857,-779.14,0.00022681,2]
[320748511,1711545041869,-13138.47256468,0.0002301,2]
[320748512,1711545041878,-156.94,0.00023075,2]
[320748513,1711545041887,-3903.97,0.00023177,2]
[320748514,1711545041897,-13000.0,0.000235,2]
[320748515,1711545041906,-220000.0,0.000235,2]
[320748516,1711545041916,-5000.0,0.000235,2]
[320748517,1711545041926,-1921.96437535,0.0002354,2]
[320748518,1711545041935,-224.01259758,0.00024,2]
[320748519,1711545041945,-1500.0,0.0002408,2]
[320748520,1711545041955,-1028.3564466,0.000241,2]
[320748521,1711545041964,-391.87937468,0.0002421,2]
[320748522,1711545041973,-1200.5777149,0.0002425,2]
[320748523,1711545041982,-151.88458866,0.0002442,2]
[320748524,1711545041991,-1000.0,0.00024474,2]
[320748525,1711545042000,-156.94,0.00024505,2]
[320748526,1711545042010,-167.21,0.0002453,2]
[320748527,1711545042019,-400.0,0.00024574,2]
[320748528,1711545042029,-576.58,0.00024889,2]
[320748529,1711545042038,-779.14,0.00024945,2]
[320748530,1711545042047,-2594.6177927,0.00025,2]
[320748531,1711545042056,-374766.26312051,0.00025,4]
[320748532,1711545042066,-2837.64796618,0.00025,2]
[320748533,1711545042076,-13368.64697923,0.00025,2]
[320748534,1711545042085,-155.0,0.00025,2]
[320748535,1711545042094,-331.87749171,0.00025,7]
[320748536,1711545042105,-1363.35991343,0.00025,2]
[320748537,1711545042116,-3155.56178742,0.000251,2]
[320748538,1711545042126,-300.29715877,0.00025281,2]
[320748539,1711545042136,-70358.0802854,0.000263,2]
[320748540,1711545042145,-152.08130486,0.00026564,2]
[320748541,1711545042155,-186.66881899,0.00026564,2]
[320748542,1711545042170,-10985.01,0.00026575,2]
[320748543,1711545042179,-1521.35295712,0.000266,2]
[320748544,1711545042189,-190.55,0.000266,2]
[320748545,1711545042199,-167.21,0.00026983,2]
[320748546,1711545042210,-10927.29587626,0.00027,2]
[320748547,1711545042220,-267833.82220871,0.00027,2]
[320748548,1711545042230,-422.8,0.00027,2]
[320748549,1711545042241,-265.55,0.00027,2]
[320748550,1711545042251,-250.0,0.00027,3]
[320748551,1711545042261,-3415.13,0.00027123,2]
[320748552,1711545042270,-1000.0,0.00027193,2]
[320748553,1711545042281,-779.14,0.00027209,2]
[320748554,1711545042292,-400.0,0.00027305,120]
[320748555,1711545042302,-150.48,0.00027397,2]
[320748556,1711545042313,-10000.0,0.00027397,2]
[320748557,1711545042324,-15710.02,0.00027397,2]
[320748558,1711545042334,-79518.03,0.00027397,2]
[320748559,1711545042345,-187.70794343,0.000275,2]
[320748560,1711545042355,-155.0,0.000275,2]
[320748561,1711545042368,-362.60983944,0.00027874,2]
[320748562,1711545042377,-1020.26297848,0.00028,10]
[320748563,1711545042386,-300.29715877,0.00028572,2]
[320748564,1711545042396,-559.30829187,0.00029,2]
[320748565,1711545042407,-300.0,0.00029,3]
[320748566,1711545042418,-167.21,0.00029436,2]
[320748567,1711545042428,-779.14,0.00029473,2]
[320748568,1711545042442,-1000.0,0.00029912,2]
[320748569,1711545042452,-2647.00710163,0.0002999,2]
[320748570,1711545042463,-158589.78183864,0.0003,2]
[320748571,1711545042473,-14469.2151994,0.0003,2]
[320748572,1711545042483,-11772.30738816,0.0003,7]
[320748573,1711545042494,-997.8003998,0.0003,10]
[320748574,1711545042505,-400.0,0.00030035,120]
[320748575,1711545042515,-152.08130486,0.00030895,2]
[320748576,1711545042525,-186.66881899,0.00030895,15]
[320748577,1711545042540,-350.0,0.00031,3]
[320748578,1711545042551,-102543.61874035,0.0003111,2]
[320748579,1711545042563,-779.14,0.00031737,2]
[320748580,1711545042573,-300.29715877,0.00031863,3]
[320748581,1711545042583,-6176.39,0.00032329,2]
[320748582,1711545042593,-692.13,0.00032548,15]
[320748583,1711545042603,-1000.0,0.00032631,2]
[320748584,1711545042613,-190.55,0.000327,2]
[320748585,1711545042623,-400.0,0.00032766,120]
[320748586,1711545042632,-422.8,0.000328,2]
[320748587,1711545042642,-265.55,0.000328,2]
[320748588,1711545042652,-297.46749581,0.00032876,2]
[320748589,1711545042662,-225.09957668,0.00032876,2]
[320748590,1711545042671,-179.4951696,0.00032876,2]
[320748591,1711545042682,-171.96366466,0.00032876,2]
[320748592,1711545042692,-400.0,0.00033,3]
[320748593,1711545042705,-150.0,0.00033274,2]
[320748594,1711545042715,-150.0,0.00033274,2]
[320748595,1711545042725,-150.0,0.00033274,2]
[320748596,1711545042738,-150.0,0.00033274,2]
[320748597,1711545042749,-150.0,0.00033274,2]
[320748598,1711545042759,-779.14,0.00034001,2]
[320748599,1711545042769,-450.0,0.00035,3]
[320748600,1711545042779,-300.29715877,0.00035154,7]
[320748601,1711545042789,-152.08130486,0.00035227,2]
[320748602,1711545042799,-186.66881899,0.00035227,31]
[320748603,1711545042809,-692.13,0.00035288,15]
[320748604,1711545042819,-2131.72,0.00035729,2]
[320748605,1711545042829,-779.14,0.00036265,2]
[320748606,1711545042839,-500.0,0.00037,3]
[320748608,1711545042851,-692.13,0.00038027,15]
[320748610,1711545042862,-8346.37,0.00038356,60]
[320748612,1711545042871,-300.29715877,0.00038445,11]
[320748614,1711545042881,-779.14,0.00038528,2]
[320748616,1711545042894,-2505.073525,0.000386,30]
[320748618,1711545042911,-273.526014,0.000387,4]
[320748621,1711545042921,-215.53404189,0.00038768,11]
[320748623,1711545042936,-300.05578703,0.0003888,2]
[320748625,1711545042949,-1000.0,0.00038904,120]
[320748626,1711545042959,-596.23846265,0.00038909,4]
[320748627,1711545042970,-1016.59042705,0.00038997,2]
[320748628,1711545042980,-150.0,0.00038999,30]
[320748630,1711545042990,-150.0,0.00038999,30]
[320748631,1711545043000,-1076797.8810302,0.00039,12]
[320748632,1711545043010,-6237.05753828,0.00039,2]
[320748633,1711545043022,-550.0,0.00039,3]
[320748634,1711545043032,-1500.0,0.000391,30]
[320748635,1711545043041,-152.08130486,0.00039559,5]
[320748636,1711545043052,-186.66881899,0.00039559,46]
[320748637,1711545043063,-200.0,0.00039569,5]
[320748638,1711545043072,-600.0,0.000396,120]
[320748640,1711545043082,-1500.0,0.000396,30]
[320748642,1711545043092,-150.0,0.00039676,120]
[320748645,1711545043102,-176.94,0.00039739,2]
[320748647,1711545043114,-203.31808541,0.00039997,2]
[320748649,1711545043124,-98865.32054666,0.0004,2]
[320748651,1711545043133,-5743.01202704,0.0004,4]
[320748653,1711545043143,-14850.79675021,0.0004,4]
[320748655,1711545043153,-1877.47970494,0.0004,30]
[320748657,1711545043163,-2385.94542606,0.0004,120]
[320748659,1711545043173,-3357.71176501,0.0004,4]
[320748661,1711545043183,-7937.94912886,0.0004,4]
[320748663,1711545043193,-690.6360872,0.0004,3]
[320748664,1711545043202,-2749.00483996,0.00040026,2]
[320748665,1711545043211,-13951.20719775,0.00040026,3]
[320748666,1711545043221,-4000.0,0.00040026,3]
[320748667,1711545043422,-2000.04878563,0.00040026,2]
[320748668,1711545043432,-10024.87046969,0.00040026,3]
[320748669,1711545043442,-18910.34718355,0.00040026,3]
[320748670,1711545043450,-3827.55524853,0.00040026,3]
[320748671,1711545043460,-162.90498814,0.00040026,7]
[320748672,1711545043469,-1000.0,0.0004007,30]
[320748673,1711545043478,-397.39647589,0.00040111,2]
[320748674,1711545043488,-774.43529339,0.00040112,4]
[320748675,1711545043498,-1321.58244622,0.00040112,90]
[320748676,1711545043507,-3380.14484589,0.00040112,4]
[320748677,1711545043516,-44379.13427763,0.00040112,120]
[320748678,1711545043526,-677.18201409,0.00040112,36]
[320748679,1711545043536,-3766.34690789,0.00040112,4]
[320748680,1711545043545,-265.55,0.000402,7]
[320748681,1711545043556,-190.55,0.000402,7]
[320748682,1711545043565,-1000.0,0.000406,15]
[320748683,1711545043574,-1000.0,0.00040634,30]
[320748684,1711545043583,-422.8,0.000407,7]
[320748685,1711545043593,-692.13,0.00040767,15]
[320748686,1711545043602,-779.14,0.00040792,2]
[320748687,1711545043611,-56.67029077,0.00040803,2]
[320748688,1711545043621,-26104.60402677,0.00040803,4]
[320748689,1711545043631,-781.49559238,0.00040803,2]
[320748690,1711545043640,-171.82424766,0.00040803,4]
[320748691,1711545043650,-927722.01234097,0.00040803,4]
[320748692,1711545043659,-1000.0,0.000409,15]
[320748693,1711545043669,-19398.779952,0.00041,4]
[320748694,1711545043678,-600.0,0.00041,3]
[320748695,1711545043688,-150.48,0.00041096,2]
[320748696,1711545043698,-183.0,0.00041096,2]
[320748697,1711545043707,-1500.0,0.00041096,120]
[320748698,1711545043716,-300.29715877,0.00041736,16]
[320748699,1711545043726,-1166.4497,0.00042,60]
[320748700,1711545043736,-650.0,0.00043,3]
[320748701,1711545043745,-779.14,0.00043056,2]
[320748702,1711545043755,-692.13,0.00043507,15]
[320748703,1711545043764,-6176.39,0.00043562,2]
[320748704,1711545043774,-152.08130486,0.00043891,21]
[320748705,1711545043783,-186.66881899,0.00043891,62]
[320748706,1711545043794,-5000.0,0.00044,14]
[320748707,1711545043803,-520.19614732,0.00044372,2]
[320748708,1711545043813,-203.31808541,0.00044997,2]
[320748709,1711545043823,-14348.88063517,0.00045,4]
[320748710,1711545043833,-784.04238766,0.00045,10]
[320748711,1711545043844,-500.0,0.00045,14]
[320748712,1711545043854,-700.0,0.00045,3]
[320748713,1711545043867,-300.29715877,0.00045027,20]
[320748714,1711545043877,-571.0,0.00045051,7]
[320748715,1711545043886,-779.14,0.0004532,2]
[320748716,1711545043896,-176.3,0.00045723,2]
[320748717,1711545043906,-692.13,0.00046247,15]
[320748718,1711545043916,-2590.66898059,0.00046447,2]
[320748719,1711545043925,-150.0,0.00046731,120]
[320748720,1711545043935,-2131.72,0.00046962,120]
[320748721,1711545043944,-2235.64300021,0.00047,2]
[320748722,1711545043955,-265.55,0.00047,7]
[320748723,1711545043965,-750.0,0.00047,3]
[320748724,1711545043976,-563.83682084,0.00047,48]
[320748725,1711545043986,-10000.0,0.00047105,30]
[320748726,1711545043995,-520.19614732,0.00047313,2]
[320748727,1711545044006,-11711.48,0.00047315,2]
[320748728,1711545044015,-1176.0,0.00047315,2]
[320748729,1711545044027,-1046.0,0.00047315,2]
[320748730,1711545044036,-12954.78,0.00047542,2]
[320748731,1711545044046,-1085.84,0.00047542,2]
[320748732,1711545044055,-779.14,0.00047584,2]
[320748733,1711545044064,-100000.0,0.00047919,7]
[320748734,1711545044074,-503.6111413,0.00048,100]
[320748735,1711545044084,-560.75087012,0.00048,4]
[320748736,1711545044094,-450.0,0.00048,48]
[320748737,1711545044107,-594.87826908,0.00048035,30]
[320748738,1711545044119,-190.55,0.000481,7]
[320748739,1711545044128,-188.95455065,0.00048154,30]
[320748740,1711545044138,-422.8,0.000482,7]
[320748741,1711545044147,-152.08130486,0.00048222,37]
[320748742,1711545044157,-186.66881899,0.00048222,78]
[320748743,1711545044167,-160.07183501,0.00048242,30]
[320748744,1711545044176,-156.14444312,0.00048263,30]
[320748745,1711545044186,-300.29715877,0.00048318,24]
[320748746,1711545044195,-151.22191435,0.00048428,30]
[320748747,1711545044204,-158.12704686,0.0004846,30]
[320748748,1711545044213,-188.95455065,0.00048639,30]
[320748749,1711545044223,-1111.0,0.000487,4]
[320748750,1711545044233,-16721.08964175,0.000487,2]
[320748751,1711545044243,-1023.0,0.000487,117]
[320748752,1711545044252,-18053.59407368,0.00048798,10]
[320748753,1711545044262,-247594.29372425,0.0004888,2]
[320748754,1711545044271,-163.60210769,0.00048891,30]
[320748755,1711545044280,-188.95455065,0.00048914,30]
[320748756,1711545044289,-692.13,0.00048986,15]
[320748757,1711545044299,-800.0,0.00049,3]
[320748758,1711545044308,-450.0,0.00049,50]
[320748759,1711545044318,-156.14444312,0.00049149,30]
[320748760,1711545044327,-2000.0,0.00049315,30]
[320748761,1711545044337,-3073.0,0.00049315,120]
[320748762,1711545044346,-3119.0,0.00049315,120]
[320748763,1711545044355,-594.87826908,0.00049341,30]
[320748764,1711545044367,-158.12704686,0.00049407,30]
[320748765,1711545044376,-156.14444312,0.00049445,30]
[320748766,1711545044385,-188.95455065,0.00049489,30]
[320748767,1711545044395,-156.14444312,0.00049576,30]
[320748768,1711545044404,-2000.0,0.00049589,30]
[320748769,1711545044414,-188.95455065,0.00049717,30]
[320748770,1711545044423,-779.14,0.00049848,2]
[320748771,1711545044432,-150.0,0.00049848,120]
[320748772,1711545044442,-646.01,0.00049863,30]
[320748773,1711545044451,-153.43825922,0.00049888,30]
[320748774,1711545044460,-31396.41818756,0.000499,30]
[320748775,1711545044470,-474.05287102,0.000499,30]
[320748776,1711545044479,-5000.0,0.0005,30]
[320748777,1711545044488,-999.999999,0.0005,2]
[320748778,1711545044498,-7137.00982734,0.0005,14]
[320748779,1711545044507,-207.21675421,0.0005,2]
[320748780,1711545044516,-11783.40493046,0.0005,30]
[320748781,1711545044525,-1291.33627352,0.0005,30]
[320748782,1711545044534,-567.75368568,0.0005,30]
[320748783,1711545044546,-32767.37935355,0.0005,30]
[320748784,1711545044555,-190.55,0.0005,7]
[320748785,1711545044565,-1600.0166858,0.0005,120]
[320748786,1711545044574,-507.0,0.0005,13]
[320748787,1711545044584,-2630.99625508,0.0005,30]
[320748788,1711545044593,-450.0,0.0005,50]
[320748789,1711545044603,-300.78474529,0.0005,2]
[320748790,1711545044613,-4000.0,0.00050137,120]
[320748791,1711545044626,-188.95455065,0.00050154,60]
[320748792,1711545044636,-153.37561363,0.00050191,60]
[320748793,1711545044645,-520.19614732,0.00050254,2]
[320748794,1711545044654,-1176.0,0.00050315,120]
[320748795,1711545044665,-594.87826908,0.00050528,60]
[320748796,1711545044675,-151.22191435,0.0005053,60]
[320748797,1711545044685,-265.55,0.000506,7]
[320748798,1711545044694,-204.14299103,0.000509,120]
[320748799,1711545044705,-204.14299103,0.000509,120]
[320748800,1711545044715,-204.14299103,0.000509,120]
[320748801,1711545044724,-204.14299103,0.000509,120]
[320748802,1711545044734,-204.14299103,0.000509,120]
[320748803,1711545044743,-204.14299103,0.000509,120]
[320748804,1711545044753,-10000.0,0.00051,14]
[320748805,1711545044763,-872.33380564,0.00051,30]
[320748806,1711545044772,-10000.0,0.00051,14]
[320748807,1711545044783,-850.0,0.00051,3]
[320748808,1711545044792,-450.0,0.00051,51]
[320748809,1711545044802,-43076.0,0.00051,120]
[320748810,1711545044811,-258.0,0.00051025,2]
[320748811,1711545044821,-192.0,0.00051025,120]
[320748812,1711545044830,-1667.50820547,0.000511,30]
[320748813,1711545044839,-1000.0,0.000511,6]
[320748814,1711545044849,-422.8,0.000511,7]
[320748815,1711545044859,-309.0,0.000511,120]
[320748817,1711545044871,-594.87826908,0.0005114,60]
[320748819,1711545044881,-157.032721,0.00051198,101]
[320748821,1711545044890,-3454.64326355,0.00051221,8]
[320748823,1711545044900,-314.065442,0.00051498,101]
[320748825,1711545044909,-500.0,0.00051505,90]
[320748826,1711545044919,-1501.01447163,0.0005158,2]
[320748827,1711545044934,-300.29715877,0.00051609,28]
[320748828,1711545044943,-9238.74595432,0.000517,120]
[320748829,1711545044953,-594.87826908,0.00051722,60]
[320748830,1711545044963,-160.13519834,0.00051726,60]
[320748831,1711545044972,-692.13,0.00051726,120]
[320748832,1711545044981,-157.032721,0.00051798,101]
[320748833,1711545044991,-156.14444312,0.00051801,60]
[320748834,1711545045002,-594.87826908,0.00051909,60]
[320748835,1711545045016,-243.70899105,0.0005199,120]
[320748836,1711545045025,-742.22069931,0.00052,4]
[320748837,1711545045036,-94941.89463959,0.00052,4]
[320748838,1711545045045,-30103.0,0.00052,120]
[320748839,1711545045055,-150.88,0.00052,120]
[320748840,1711545045065,-150.88,0.00052,120]
[320748841,1711545045074,-150.88,0.00052,120]
[320748842,1711545045084,-150.88,0.00052,120]
[320748843,1711545045094,-150.88,0.00052,120]
[320748844,1711545045104,-150.88,0.00052,120]
[320748845,1711545045115,-150.88,0.00052,120]
[320748846,1711545045125,-150.88,0.00052,120]
[320748847,1711545045134,-150.88,0.00052,120]
[320748848,1711545045143,-150.88,0.00052,120]
[320748849,1711545045152,-150.88,0.00052,120]
[320748850,1711545045162,-150.88,0.00052,120]
[320748851,1711545045171,-150.88,0.00052,120]
[320748852,1711545045180,-150.88,0.00052,120]
[320748853,1711545045190,-150.88,0.00052,120]
[320748854,1711545045199,-150.88,0.00052,120]
[320748855,1711545045209,-150.88,0.00052,120]
[320748856,1711545045219,-150.88,0.00052,120]
[320748857,1711545045227,-150.88,0.00052,120]
[320748858,1711545045237,-150.88,0.00052,120]
[320748859,1711545045246,-150.88,0.00052,120]
[320748860,1711545045255,-150.88,0.00052,120]
[320748861,1711545045265,-150.88,0.00052,120]
[320748862,1711545045274,-150.88,0.00052,120]
[320748863,1711545045283,-150.88,0.00052,120]
[320748864,1711545045293,-150.88,0.00052,120]
[320748865,1711545045302,-150.88,0.00052,120]
[320748866,1711545045311,-150.88,0.00052,120]
[320748867,1711545045320,-150.88,0.00052,120]
[320748868,1711545045329,-150.88,0.00052,120]
[320748869,1711545045338,-150.88,0.00052,120]
[320748870,1711545045347,-150.88,0.00052,120]
[320748871,1711545045358,-150.88,0.00052,120]
[320748872,1711545045369,-150.88,0.00052,120]
[320748873,1711545045378,-150.88,0.00052,120]
[320748874,1711545045386,-150.88,0.00052,120]
[320748875,1711545045395,-150.88,0.00052,120]
[320748876,1711545045405,-150.88,0.00052,120]
[320748877,1711545045414,-150.88,0.00052,120]
[320748878,1711545045423,-150.88,0.00052,120]
[320748879,1711545045433,-150.88,0.00052,120]
[320748880,1711545045442,-150.88,0.00052,120]
[320748881,1711545045452,-150.88,0.00052,120]
[320748882,1711545045462,-150.88,0.00052,120]
[320748883,1711545045472,-150.88,0.00052,120]
[320748884,1711545045481,-150.88,0.00052,120]
[320748885,1711545045491,-150.88,0.00052,120]
[320748886,1711545045500,-150.88,0.00052,120]
[320748887,1711545045509,-150.88,0.00052,120]
[320748888,1711545045519,-150.88,0.00052,120]
[320748889,1711545045529,-150.88,0.00052,120]
[320748890,1711545045539,-150.88,0.00052,120]
[320748891,1711545045548,-150.88,0.00052,120]
[320748892,1711545045557,-150.88,0.00052,120]
[320748893,1711545045568,-150.88,0.00052,120]
[320748894,1711545045578,-150.88,0.00052,120]
[320748895,1711545045588,-150.88,0.00052,120]
[320748896,1711545045598,-150.88,0.00052,120]
[320748897,1711545045607,-150.88,0.00052,120]
[320748898,1711545045620,-150.88,0.00052,120]
[320748899,1711545045629,-150.88,0.00052,120]
[320748900,1711545045639,-150.88,0.00052,120]
[320748901,1711545045648,-150.88,0.00052,120]
[320748902,1711545045658,-150.88,0.00052,120]
[320748903,1711545045668,-150.88,0.00052,120]
[320748904,1711545045678,-150.88,0.00052,120]
[320748905,1711545045687,-150.88,0.00052,120]
[320748906,1711545045697,-150.88,0.00052,120]
[320748907,1711545045707,-150.88,0.00052,120]
[320748908,1711545045769,-150.88,0.00052,120]
[320748909,1711545045778,-150.88,0.00052,120]
[320748910,1711545045788,-150.88,0.00052,120]
[320748911,1711545045797,-265.8792465,0.0005205,120]
[320748912,1711545045807,-265.8792465,0.0005205,120]
[320748913,1711545045816,-265.8792465,0.0005205,120]
[320748914,1711545045826,-265.8792465,0.0005205,120]
[320748915,1711545045835,-265.8792465,0.0005205,120]
[320748916,1711545045845,-265.8792465,0.0005205,120]
[320748917,1711545045855,-265.8792465,0.0005205,120]
[320748918,1711545045866,-265.8792465,0.0005205,120]
[320748919,1711545045875,-265.8792465,0.0005205,120]
[320748920,1711545045884,-265.8792465,0.0005205,120]
[320748921,1711545045894,-265.8792465,0.0005205,120]
[320748922,1711545045903,-265.8792465,0.0005205,120]
[320748923,1711545045913,-265.8792465,0.0005205,120]
[320748924,1711545045923,-265.8792465,0.0005205,120]
[320748925,1711545045935,-265.8792465,0.0005205,120]
[320748926,1711545045945,-265.8792465,0.0005205,120]
[320748927,1711545045955,-265.8792465,0.0005205,120]
[320748929,1711545045964,-265.8792465,0.0005205,120]
[320748930,1711545045973,-265.8792465,0.0005205,120]
[320748932,1711545045983,-266.37,0.0005205,120]
[320748933,1711545045992,-150.53795281,0.0005205,120]
[320748934,1711545046001,-150.53795281,0.0005205,120]
[320748935,1711545046011,-150.53795281,0.0005205,120]
[320748936,1711545046021,-150.53795281,0.0005205,120]
[320748937,1711545046032,-150.53795281,0.0005205,120]
[320748938,1711545046042,-150.53795281,0.0005205,120]
[320748939,1711545046052,-150.53795281,0.0005205,120]
[320748940,1711545046062,-150.53795281,0.0005205,120]
[320748941,1711545046072,-151.03,0.0005205,120]
[320748942,1711545046082,-183.09042518,0.0005205,120]
[320748943,1711545046091,-183.09042518,0.0005205,120]
[320748944,1711545046102,-183.59,0.0005205,120]
[320748945,1711545046111,-161.62254694,0.0005205,120]
[320748946,1711545046122,-161.62254694,0.0005205,120]
[320748947,1711545046132,-161.62254694,0.0005205,120]
[320748948,1711545046142,-161.62254694,0.0005205,120]
[320748949,1711545046151,-161.62254694,0.0005205,120]
[320748950,1711545046160,-161.62254694,0.0005205,120]
[320748952,1711545046169,-161.62254694,0.0005205,120]
[320748954,1711545046179,-161.62254694,0.0005205,120]
[320748956,1711545046188,-162.12,0.0005205,120]
[320748957,1711545046198,-500.0,0.00052053,90]
[320748958,1711545046208,-500.0,0.00052054,60]
[320748959,1711545046217,-1500.0,0.00052054,120]
[320748960,1711545046227,-3248.76,0.00052054,2]
[320748961,1711545046237,-17591.0,0.000521,120]
[320748962,1711545046247,-190.55,0.000521,7]
[320748963,1711545046257,-779.14,0.00052112,2]
[320748964,1711545046267,-156.14444312,0.00052133,60]
[320748965,1711545046277,-163.60210769,0.00052133,60]
[320748966,1711545046287,-2590.66898059,0.00052143,2]
[320748967,1711545046297,-151.0,0.00052148,2]
[320748968,1711545046306,-594.87826908,0.00052151,60]
[320748969,1711545046315,-157.032721,0.00052198,103]
[320748970,1711545046325,-151.22191435,0.00052275,60]
[320748971,1711545046334,-162.12929694,0.000523,60]
[320748972,1711545046344,-594.87826908,0.00052361,60]
[320748973,1711545046354,-594.87826908,0.00052393,60]
[320748974,1711545046367,-314.065442,0.00052498,103]
[320748975,1711545046376,-265.55,0.000525,14]
[320748976,1711545046387,-152.08130486,0.00052554,54]
[320748977,1711545046406,-186.66881899,0.00052554,93]
[320748978,1711545046415,-500.0,0.00052601,90]
[320748979,1711545046425,-500.0,0.00052602,60]
[320748980,1711545046434,-594.87826908,0.0005265,60]
[320748981,1711545046444,-156.90115204,0.00052678,60]
[320748982,1711545046453,-156.14444312,0.00052703,60]
[320748983,1711545046462,-594.87826908,0.00052793,60]
[320748984,1711545046472,-160.07183501,0.00052794,60]
[320748985,1711545046481,-157.032721,0.00052798,103]
[320748986,1711545046491,-3248.76,0.00052876,120]
[320748987,1711545046501,-61910.48696219,0.000529,30]
[320748988,1711545046511,-188.95455065,0.00052902,60]
[320748989,1711545046520,-188.95455065,0.00052995,60]
[320748990,1711545046530,-9221.64878868,0.00053,4]
[320748991,1711545046540,-1984.88,0.00053,120]
[320748992,1711545046551,-900.0,0.00053,3]
[320748993,1711545046561,-450.0,0.00053,53]
[320748994,1711545046570,-188.95455065,0.00053021,60]
[320748995,1711545046579,-302.0,0.00053025,4]
[320748996,1711545046589,-159.796,0.00053048,120]
[320748997,1711545046599,-159.797,0.00053048,120]
[320748998,1711545046610,-159.797,0.00053048,120]
[320748999,1711545046622,-159.797,0.00053048,120]
[320749000,1711545046631,-159.797,0.00053048,120]
[320749001,1711545046642,-1648.557,0.00053048,120]